bitfinex-derivatives/quotes_ETHF0:USTF0_20241007
["timestamp","ask_amount","ask_price","bid_price","bid_amount"]
[1728282988527,0.28092,2491.9,2491.8,0.8012]
[1728282988719,0.28091,2492.0,2491.8,0.8012]
[1728282989024,0.28092,2491.9,2491.8,0.8012]
[1728282989326,1.6948,2492.1,2491.8,0.8012]
[1728282989327,0.28091,2492.0,2491.8,0.8012]
[1728282992826,0.28092,2491.9,2491.8,0.8012]
[1728282993033,1.58092,2491.9,2491.8,0.8012]
[1728282993326,0.28094,2491.8,2491.6,3.2078]
[1728282993529,0.28094,2491.8,2491.6,3.6071]
[1728282993721,0.4242,2491.7,2491.6,3.6071]
[1728282994231,0.70514,2491.7,2491.6,3.6071]
[1728282994430,2.00514,2491.7,2491.6,3.6071]
[1728282996838,0.28095,2491.6,2491.5,0.3975]
[1728282997132,0.28095,2491.6,2491.4,0.4088]
[1728282997133,0.28096,2491.5,2491.4,0.4088]
[1728282998935,1.6902,2491.6,2491.4,0.4088]
[1728282999131,1.97116,2491.6,2491.4,0.4088]
[1728282999341,0.28096,2491.5,2491.4,0.4088]
[1728283000824,0.28096,2491.5,2491.2,0.4152]
[1728283001134,1.98349,2491.4,2491.2,0.4152]
[1728283002330,0.28099,2491.3,2491.2,0.4152]
[1728283005436,0.281,2491.2,2491.1,0.3837]
[1728283005638,1.581,2491.2,2491.1,0.3837]
[1728283006532,1.3,2491.2,2491.0,3.2078]
[1728283006736,1.98851,2491.1,2490.9,0.7984]
[1728283006937,0.28102,2491.0,2490.9,0.7984]
[1728283007542,0.28103,2490.9,2490.6,3.48887]
[1728283007737,0.4075,2490.8,2490.7,0.383]
[1728283008535,0.68854,2490.8,2490.7,0.383]
[1728283008740,0.4075,2490.8,2490.7,0.383]
[1728283009447,0.28101,2491.1,2490.7,0.66405]
[1728283009641,0.3962,2491.2,2490.7,1.683]
[1728283009845,0.3962,2491.2,2490.9,3.2078]
[1728283010045,0.3962,2491.2,2491.0,0.4048]
[1728283010243,0.3962,2491.2,2491.0,0.815]
[1728283010447,0.3962,2491.2,2491.1,0.3878]
[1728283012547,0.6772,2491.2,2491.1,0.3878]
[1728283012845,0.3962,2491.2,2491.1,0.3878]
[1728283016246,4.71619,2491.7,2491.1,0.3878]
[1728283016554,1.3,2491.4,2491.1,0.3878]
[1728283016759,1.58098,2491.4,2491.1,0.3878]
[1728283016956,1.58098,2491.4,2491.1,0.66881]
[1728283017646,1.58098,2491.4,2491.1,0.3878]
[1728283017855,1.58098,2491.4,2491.1,0.66881]
[1728283018450,1.58098,2491.4,2491.1,0.3878]
[1728283018852,1.58099,2491.3,2491.1,0.3878]
[1728283019154,0.281,2491.2,2491.1,0.3878]
[1728283019456,0.6698,2491.2,2491.1,0.3878]
[1728283021851,0.6698,2491.2,2490.9,3.2078]
[1728283021852,0.3888,2491.2,2490.9,3.2078]
[1728283022054,0.28103,2491.0,2490.8,0.8071]
[1728283022246,1.3,2491.1,2490.8,0.8071]
[1728283022450,0.28103,2491.0,2490.8,0.8071]
[1728283023956,1.58103,2490.9,2490.8,0.8071]
[1728283026260,1.3,2491.0,2490.8,0.8071]
[1728283026866,1.58103,2491.0,2490.8,0.8071]
[1728283029265,1.3,2491.1,2490.8,0.8071]
[1728283029466,1.3,2491.1,2490.9,0.28103]
[1728283030269,1.3,2491.1,2490.8,0.8071]
[1728283030472,1.3,2491.1,2490.8,1.08814]
[1728283031066,1.58101,2491.1,2490.8,1.08814]
[1728283031562,1.58102,2491.1,2490.8,0.8071]
[1728283032968,0.28103,2491.0,2490.8,0.8071]
[1728283034169,0.6698,2491.2,2490.9,0.28102]
[1728283034468,0.6698,2491.2,2491.0,0.4064]
[1728283035672,0.28101,2491.1,2491.0,0.4064]
[1728283037373,1.58101,2491.1,2491.0,0.4064]
[1728283039271,1.58101,2491.1,2491.0,0.92125263]
[1728283039579,0.66981,2491.2,2491.0,0.92125263]
[1728283039770,1.96981,2491.2,2491.0,0.4064]
[1728283040464,1.9698,2491.2,2491.0,0.68742]
[1728283040670,1.9698,2491.2,2491.0,0.4064]
[1728283041074,1.9698,2491.2,2491.1,0.51490249]
[1728283044178,1.6888,2491.2,2491.0,3.2078]
[1728283044477,0.28101,2491.1,2491.0,3.2078]
[1728283044681,0.28101,2491.1,2491.0,3.72304319]
[1728283045174,0.3888,2491.2,2491.0,0.51524319]
[1728283045374,0.3888,2491.2,2490.8,1.1919]
[1728283045375,0.28101,2491.1,2490.8,1.47294]
[1728283045575,0.28101,2491.1,2490.9,0.51530012]
[1728283045770,0.28101,2491.1,2491.0,0.51530012]
[1728283047677,0.28101,2491.1,2490.8,1.47294]
[1728283047876,0.28101,2491.1,2491.0,0.51538281]
[1728283048084,0.28101,2491.1,2491.0,0.51538561]
[1728283051480,0.6698,2491.2,2491.0,0.51538561]
[1728283051777,0.6698,2491.2,2491.1,0.51538561]
[1728283054377,0.6698,2491.2,2490.9,0.28103]
[1728283054573,0.6698,2491.2,2491.0,0.51532498]
[1728283054874,0.6698,2491.2,2491.1,0.51534279]
[1728283058075,0.6698,2491.2,2491.1,0.51543823]
[1728283061380,0.6698,2491.2,2490.9,0.28103]
[1728283061581,0.6698,2491.2,2491.0,0.51541005]
[1728283061780,0.6698,2491.2,2491.1,0.51541005]
[1728283061977,0.3888,2491.2,2491.1,0.51541005]
[1728283062181,4.20411775,2491.4,2491.3,0.28099]
[1728283062380,4.20411775,2491.4,2491.3,3.71444388]
[1728283062578,4.20411775,2491.4,2491.3,3.99543388]
[1728283063083,4.20411775,2491.4,2491.3,9.30903388]
[1728283063590,4.72963247,2491.6,2491.5,0.28096]
[1728283063787,4.72963247,2491.6,2491.5,0.79637005]
[1728283064190,4.72963247,2491.6,2491.5,0.51541005]
[1728283064497,6.31058247,2491.6,2491.5,0.51541005]
[1728283064789,0.28096,2491.5,2491.2,0.8017]
[1728283064988,1.12116,2491.5,2491.3,0.51485956]
[1728283065176,1.12116,2491.5,2491.4,0.51485191]
[1728283066388,2.42116,2491.5,2491.4,0.51485191]
[1728283067385,2.1402,2491.5,2491.4,0.51485191]
[1728283067586,0.4242,2491.5,2491.4,0.51485191]
[1728283068090,0.4242,2491.5,2491.4,0.51474457]
[1728283069589,0.70516,2491.5,2491.4,0.51474457]
[1728283070387,0.4242,2491.5,2491.4,0.51476178]
[1728283071087,0.70516,2491.5,2491.4,0.51476178]
[1728283071292,0.70516,2491.5,2491.4,0.51475721]
[1728283072894,0.70516,2491.5,2491.2,1.08269]
[1728283073090,0.70516,2491.5,2491.3,0.51475779]
[1728283073293,0.70516,2491.5,2491.4,0.51475779]
[1728283074388,2.00516,2491.5,2491.4,0.51475779]
[1728283074591,1.7242,2491.5,2491.0,3.5987]
[1728283074795,1.3,2491.3,2491.1,0.71825682]
[1728283074997,1.58099,2491.3,2491.1,0.71825682]
[1728283075183,1.58099,2491.3,2491.0,3.87972]
[1728283075184,1.58099,2491.3,2491.0,3.5987]
[1728283075389,1.58099,2491.3,2491.1,0.51489869]
[1728283075592,1.58099,2491.3,2491.2,0.51489869]
[1728283077200,1.3,2491.3,2491.2,0.51489869]
[1728283077392,1.7104,2491.4,2491.2,0.51489869]
[1728283077592,0.28099,2491.3,2491.0,3.87972]
[1728283077889,0.28099,2491.3,2491.1,0.51495115]
[1728283078090,0.28099,2491.3,2491.2,0.51495115]
[1728283078395,0.28099,2491.3,2491.2,0.51496049]
[1728283080998,0.28099,2491.3,2491.1,0.19762893]
[1728283081303,0.28099,2491.3,2491.2,0.51500277]
[1728283081904,1.99159,2491.3,2491.2,0.51500277]
[1728283082102,1.58099,2491.3,2491.2,0.51500277]
[1728283083911,1.58099,2491.3,2491.2,0.51506075]
[1728283084399,1.58099,2491.3,2491.2,0.5150587]
[1728283084602,0.4104,2491.4,2491.2,0.5150587]
[1728283084800,1.99138,2491.4,2491.0,3.5987]
[1728283085003,1.7104,2491.4,2491.1,0.51505333]
[1728283085301,5.43197247,2491.8,2491.0,3.87972]
[1728283085302,4.21166977,2491.6,2491.2,0.90285333]
[1728283085498,0.28095,2491.7,2491.4,0.28098]
[1728283085696,0.28095,2491.7,2491.5,0.4211]
[1728283085892,0.28095,2491.7,2491.6,0.3878]
[1728283086901,0.28095,2491.6,2491.5,0.4211]
[1728283087202,1.58095,2491.6,2491.5,0.4211]
[1728283088302,1.3,2491.6,2491.2,0.4188]
[1728283088609,0.28098,2491.4,2491.3,0.90672889]
[1728283088906,1.3,2491.4,2491.3,0.90672889]
[1728283089102,1.58098,2491.4,2491.3,0.90672889]
[1728283089405,0.28096,2491.6,2491.3,0.90672889]
[1728283089596,0.28096,2491.6,2491.4,0.51492889]
[1728283089597,1.99376,2491.6,2491.4,0.51492889]
[1728283089796,1.99376,2491.6,2491.3,0.3918]
[1728283089993,0.28096,2491.5,2491.4,0.51493529]
[1728283090798,0.28096,2491.5,2491.3,0.3918]
[1728283090997,1.7128,2491.6,2491.4,0.51494515]
[1728283091197,1.99376,2491.6,2491.3,0.3918]
[1728283091406,0.28096,2491.5,2491.4,0.51494976]
[1728283092495,1.99376,2491.6,2491.4,0.51494976]
[1728283092804,1.99376,2491.6,2491.3,0.3918]
[1728283093000,1.99376,2491.6,2491.4,0.51495378]
[1728283093202,1.7128,2491.6,2491.3,0.3918]
[1728283093410,1.7128,2491.6,2491.4,0.79592853]
[1728283093611,1.7128,2491.6,2491.5,0.51495853]
[1728283094006,1.99375,2491.6,2491.5,0.51495853]
[1728283094703,1.99375,2491.6,2491.4,0.3977]
[1728283095004,1.99375,2491.6,2491.5,0.51490968]
[1728283095414,0.4128,2491.6,2491.5,0.51490968]
[1728283095711,0.4128,2491.6,2491.5,4.52850968]
[1728283095901,0.4128,2491.6,2491.5,4.80946968]
[1728283096104,0.4128,2491.6,2491.5,0.79586968]
[1728283096303,0.4128,2491.6,2491.5,0.51490968]
[1728283097712,0.4128,2491.6,2491.5,0.51486456]
[1728283101214,0.4128,2491.6,2491.4,3.88647]
[1728283101516,0.69375,2491.6,2491.5,0.51490482]
[1728283101918,0.4128,2491.6,2491.5,0.51490482]
[1728283102614,0.28094,2491.8,2491.5,0.79586482]
[1728283102810,0.4075,2491.7,2491.6,0.91246452]
[1728283103120,0.28094,2491.8,2491.6,0.91246452]
[1728283103312,1.7075,2491.9,2491.7,0.67674]
[1728283103515,0.4075,2491.9,2491.7,0.67674]
[1728283103812,0.4075,2491.9,2491.8,0.28093]
[1728283104014,0.4075,2491.9,2491.8,0.79565525]
[1728283104210,0.4075,2491.9,2491.8,2.09565525]
[1728283104622,0.2809,2492.1,2491.8,2.09565525]
[1728283104818,0.6719,2492.1,2491.8,1.58093]
[1728283105018,0.6719,2492.1,2491.9,0.51451252]
[1728283105321,0.6719,2492.1,2492.0,0.3937]
[1728283105913,1.9719,2492.1,2492.0,0.3937]
[1728283107719,0.28092,2491.9,2491.7,4.0085]
[1728283107924,1.58092,2491.9,2491.8,0.51441407]
[1728283108516,0.28093,2491.8,2491.7,4.0211]
[1728283108719,0.28093,2491.8,2491.7,4.53554435]
[1728283109118,1.58093,2491.8,2491.7,3.72224435]
[1728283109319,0.28095,2491.7,2491.5,0.4068]
[1728283109523,0.28095,2491.7,2491.6,0.51450159]
[1728283110026,0.28095,2491.7,2491.5,0.4068]
[1728283110027,0.28095,2491.6,2491.5,0.4068]
[1728283110218,1.58095,2491.6,2491.5,0.92133325]
[1728283111721,1.3,2491.6,2491.5,0.92133325]
[1728283114430,1.58095,2491.6,2491.5,0.51453325]
[1728283114731,0.28097,2491.5,2491.3,3.2078]
[1728283114920,0.28097,2491.5,2491.4,0.51441762]
[1728283115424,1.58097,2491.5,2491.4,0.51441762]
[1728283115746,1.58097,2491.5,2491.2,0.402]
[1728283115747,1.6923,2491.5,2491.2,0.402]
[1728283115923,0.28098,2491.4,2491.2,0.402]
[1728283118532,1.6923,2491.5,2491.2,0.402]
[1728283118731,0.28099,2491.4,2491.2,0.402]
[1728283118930,1.58099,2491.3,2491.2,0.402]
[1728283119428,1.58099,2491.3,2491.1,0.58647017]
[1728283119632,1.3,2491.3,2491.1,0.3871]
[1728283119831,1.58099,2491.3,2491.0,3.89962]
[1728283120133,1.58099,2491.3,2491.1,0.5145455]
[1728283120328,1.58099,2491.3,2491.0,3.89962]
[1728283120533,1.58099,2491.3,2491.1,0.51452671]
[1728283120725,1.58099,2491.3,2491.0,3.89962]
[1728283120926,1.58099,2491.3,2491.1,0.51452324]
[1728283121229,1.58099,2491.3,2491.0,3.89962]
[1728283121634,1.58099,2491.3,2491.1,0.51450697]
[1728283121821,1.58099,2491.3,2491.0,3.89962]
[1728283122837,1.58099,2491.3,2491.1,0.51450469]
[1728283123025,1.58099,2491.3,2491.0,3.89962]
[1728283123228,1.58099,2491.3,2491.1,0.51450532]
[1728283123426,1.58099,2491.3,2491.0,3.89962]
[1728283123730,1.58099,2491.3,2491.1,0.51449834]
[1728283123929,1.58099,2491.3,2491.0,3.89962]
[1728283124234,1.58099,2491.3,2491.1,0.51450719]
[1728283124436,1.58099,2491.3,2491.0,3.89962]
[1728283124631,0.281,2491.2,2491.1,0.51449063]
[1728283124929,0.6736,2491.2,2491.1,0.51449063]
[1728283125138,0.6736,2491.2,2491.0,0.4108]
[1728283126024,1.9736,2491.2,2491.0,0.4108]
[1728283127029,0.405,2491.1,2491.0,0.4108]
[1728283127325,0.68601,2491.1,2491.0,0.4108]
[1728283127533,0.28102,2491.0,2490.9,4.85283791]
[1728283127735,1.58102,2491.0,2490.9,4.85283791]
[1728283128441,1.3,2491.0,2490.9,4.85283791]
[1728283129937,1.58102,2491.0,2490.9,4.85283791]
[1728283131145,1.3,2491.0,2490.9,4.85283791]
[1728283134649,1.3,2491.0,2490.9,5.13386791]
[1728283135349,1.705,2491.1,2490.9,5.13386791]
[1728283135653,1.705,2491.1,2491.0,0.4129]
[1728283136350,1.705,2491.1,2491.0,0.809]
[1728283138656,1.98601,2491.1,2491.0,0.809]
[1728283142465,0.28103,2491.0,2490.7,3.48885]
[1728283142659,1.3,2490.9,2490.8,0.3967]
[1728283143861,1.3,2490.9,2490.7,3.595]
[1728283144066,4.30292,2491.2,2490.7,3.595]
[1728283144067,1.6912,2490.8,2490.7,3.595]
[1728283144378,1.97224,2490.8,2490.7,3.595]
[1728283144554,1.6912,2490.8,2490.7,3.595]
[1728283145157,1.97224,2490.8,2490.7,3.595]
[1728283145363,1.6912,2490.8,2490.5,0.425]
[1728283145565,1.3,2490.6,2490.5,0.425]
[1728283146465,1.58107,2490.6,2490.5,0.425]
[1728283146764,1.58107,2490.6,2490.0,3.48893]
[1728283146765,0.28109,2490.4,2490.0,3.48893]
[1728283146966,1.3,2490.2,2490.1,0.424]
[1728283148355,1.7024,2490.2,2490.1,0.424]
[1728283148565,1.98351,2490.2,2490.1,0.424]
[1728283149867,1.7024,2490.2,2489.7,3.2078]
[1728283150162,1.7024,2490.2,2489.7,0.3929]
[1728283150163,1.3,2489.8,2489.7,0.3929]
[1728283150668,1.6998,2489.8,2489.7,0.3929]
[1728283153670,1.6998,2489.8,2489.7,0.59576995]
[1728283154073,1.6998,2489.8,2489.7,0.3929]
[1728283154574,1.6998,2489.8,2489.7,0.67407]
[1728283158574,1.6998,2489.8,2489.7,0.3929]
[1728283159874,1.6998,2489.8,2489.7,0.59409365]
[1728283160075,1.6998,2489.8,2489.7,0.3929]
[1728283161178,1.6998,2489.8,2489.7,0.67407]
[1728283161773,1.6998,2489.8,2489.7,0.87299289]
[1728283162474,1.6998,2489.8,2489.7,0.67407]
[1728283162675,1.6998,2489.8,2489.7,0.87212004]
[1728283162989,1.3,2490.1,2489.8,0.28116]
[1728283163582,1.6843,2490.2,2489.9,0.4189]
[1728283163782,1.6843,2490.2,2490.1,0.28112]
[1728283164179,1.6843,2490.2,2490.1,0.70512]
[1728283166582,1.6843,2490.2,2490.1,0.424]
[1728283170386,1.96541,2490.2,2490.1,0.424]
[1728283171195,1.6843,2490.2,2490.1,0.424]
[1728283175989,1.96541,2490.2,2490.0,0.4123]
[1728283176191,1.3,2490.1,2490.0,0.4123]
[1728283177083,1.3,2490.1,2490.0,0.69343]
[1728283177691,1.3,2490.1,2490.0,0.4123]
[1728283179698,1.3,2490.1,2490.0,0.69343]
[1728283180391,0.28113,2490.0,2489.9,3.2078]
[1728283180586,1.58113,2490.1,2489.9,3.2078]
[1728283180786,0.28113,2490.0,2489.9,3.2078]
[1728283180988,1.58113,2490.1,2489.9,3.2078]
[1728283181389,1.58113,2490.1,2489.8,0.68176]
[1728283181595,1.3,2489.9,2489.8,0.68176]
[1728283184296,1.3,2489.9,2489.8,0.9153763]
[1728283184497,0.28117,2489.7,2489.6,3.2078]
[1728283184800,1.58117,2489.7,2489.6,3.2078]
[1728283184996,1.3,2489.7,2489.6,3.2078]
[1728283185702,1.3,2489.7,2489.6,3.48898]
[1728283185892,1.3,2489.7,2489.5,0.28119]
[1728283186087,1.3,2489.6,2489.3,0.7949]
[1728283186295,1.3,2489.4,2489.3,1.07611]
[1728283186602,1.3,2489.4,2489.3,1.3099992]
[1728283187497,1.3,2489.4,2489.3,1.07611]
[1728283187798,1.5812,2489.4,2489.3,0.51522746]
[1728283188004,2.4019,2489.4,2489.2,3.2078]
[1728283189499,2.1207,2489.4,2489.2,3.2078]
[1728283189700,0.28124,2489.1,2488.7,3.48908]
[1728283189895,1.3,2488.9,2488.8,0.51558004]
[1728283190096,1.58126,2488.9,2488.6,5.03584557]
[1728283190298,1.3,2488.7,2488.6,5.03584557]
[1728283190501,1.3,2488.7,2488.4,3.2078]
[1728283190700,1.5813,2488.5,2488.1,3.6312]
[1728283191000,1.3,2488.3,2488.2,0.79695549]
[1728283191201,1.3,2488.3,2488.1,3.6312]
[1728283191507,1.3,2488.3,2488.1,3.91254]
[1728283192508,2.82,2488.3,2488.1,3.6312]
[1728283196611,3.49624,2488.2,2488.1,3.6312]
[1728283197217,3.49624,2488.2,2487.8,3.48918]
[1728283197218,7.51544,2488.2,2487.8,3.48918]
[1728283197511,2.82,2488.0,2487.8,3.5915]
[1728283197809,2.82,2488.0,2487.5,3.2078]
[1728283198013,3.10139,2487.8,2487.6,0.3837]
[1728283198312,0.3949,2487.7,2487.5,3.2078]
[1728283198499,2.82,2487.6,2487.5,3.2078]
[1728283199204,2.82,2487.6,2487.5,3.6104]
[1728283199405,3.1014,2487.6,2487.5,3.6104]
[1728283199712,2.82,2487.6,2487.5,3.6104]
[1728283203613,2.82,2487.6,2487.5,3.89182]
[1728283204111,2.82,2487.9,2487.5,7.6304]
[1728283204316,2.82,2487.9,2487.8,0.28138]
[1728283204713,2.82,2487.9,2487.8,3.48918]
[1728283205212,2.82,2488.1,2487.8,3.48918]
[1728283205918,3.10135,2488.1,2487.8,3.48918]
[1728283207715,3.91104,2488.6,2488.0,0.28135]
[1728283207716,2.82,2488.3,2488.0,0.28135]
[1728283208023,2.82,2488.3,2488.1,1.08975]
[1728283208219,2.82,2488.3,2488.2,0.3844]
[1728283208609,2.82,2488.3,2488.1,0.8084]
[1728283208917,0.28134,2488.2,2488.1,0.8084]
[1728283209419,0.68784,2488.2,2488.1,0.8084]
[1728283210114,0.28139,2487.8,2487.5,3.2078]
[1728283210307,5.12907,2488.2,2487.6,0.4156]
[1728283210308,0.28139,2487.7,2487.6,0.4156]
[1728283210618,0.3885,2488.1,2487.6,0.4156]
[1728283210824,0.28139,2487.8,2487.6,0.4156]
[1728283211011,2.82,2487.7,2487.6,0.4156]
[1728283211415,2.82,2487.7,2487.6,0.697]
[1728283212515,2.82,2487.7,2487.6,0.4156]
[1728283212718,3.10139,2487.7,2487.6,0.4156]
[1728283213115,2.82,2487.7,2487.6,0.4156]
[1728283213421,3.10139,2487.7,2487.6,0.4156]
[1728283213618,2.82,2487.7,2487.6,0.4156]
[1728283217716,1.09936,2488.2,2487.6,0.69699]
[1728283217717,3.10138,2487.9,2487.6,0.69699]
[1728283217915,2.82,2487.9,2487.8,0.28138]
[1728283218116,0.4011,2488.1,2487.8,0.28138]
[1728283218117,0.4011,2488.1,2487.9,0.28137]
[1728283218315,0.4011,2488.1,2488.0,0.417]
[1728283222127,0.68245,2488.1,2488.0,0.417]
[1728283222330,0.4011,2488.1,2488.0,0.417]
[1728283223034,0.68245,2488.1,2488.0,0.417]
[1728283223734,0.4011,2488.1,2488.0,0.417]
[1728283225337,3.2211,2488.1,2488.0,0.417]
[1728283225924,3.2211,2488.1,2488.0,0.69836]
[1728283226326,3.2211,2488.1,2488.0,0.417]
[1728283228539,1.7011,2488.1,2488.0,0.417]
[1728283229937,1.98245,2488.1,2488.0,0.417]
[1728283230332,1.98245,2488.1,2487.8,3.91008]
[1728283230535,1.3,2487.9,2487.8,3.91008]
[1728283233129,1.3,2487.9,2487.8,4.42547038]
[1728283234642,1.3,2487.9,2487.8,4.42618902]
[1728283235339,0.4011,2488.1,2487.9,0.28137]
[1728283235340,1.3,2488.0,2487.9,0.28137]
[1728283235552,1.3,2488.0,2487.9,1.21107902]
[1728283236536,0.4193,2488.5,2487.9,0.92970902]
[1728283236738,0.3908,2488.4,2488.2,0.28134]
[1728283237040,1.3,2488.3,2488.2,0.28134]
[1728283237246,1.3,2488.3,2488.2,1.22023952]
[1728283239840,1.3,2488.3,2488.2,0.93889952]
[1728283240039,1.58133,2488.3,2488.2,0.93889952]
[1728283240241,1.3,2488.3,2488.2,0.93889952]
[1728283240543,1.3,2488.3,2488.2,1.22023952]
[1728283240745,1.3,2488.3,2488.2,0.93889952]
[1728283240951,1.3,2488.3,2488.2,1.22023952]
[1728283241548,1.3,2488.3,2488.2,1.61203952]
[1728283243443,1.3,2488.3,2488.2,1.33069952]
[1728283243851,1.3,2488.3,2488.2,0.93889952]
[1728283244344,1.3,2488.3,2488.2,1.22023952]
[1728283244550,1.3,2488.3,2488.2,0.93889952]
[1728283244854,0.28134,2488.2,2488.1,3.2078]
[1728283245149,0.28134,2488.2,2488.1,3.72428426]
[1728283245349,0.28134,2488.2,2488.1,3.72433715]
[1728283247049,2.39303,2488.3,2488.1,3.2078]
[1728283247351,1.58133,2488.3,2488.1,3.2078]
[1728283247548,1.58133,2488.3,2488.2,0.3964]
[1728283248152,1.58133,2488.3,2488.2,0.91296741]
[1728283248654,1.3,2488.3,2488.2,0.91296741]
[1728283248855,1.58133,2488.3,2488.2,0.91296741]
[1728283249554,1.58133,2488.3,2488.2,0.3964]
[1728283249742,1.58133,2488.3,2488.2,0.91309665]
[1728283249942,1.58133,2488.3,2488.2,0.3964]
[1728283250154,1.58133,2488.3,2488.2,0.91311192]
[1728283250652,1.58133,2488.3,2488.2,0.51671192]
[1728283253661,1.3,2488.3,2488.2,0.51670466]
[1728283255652,1.58133,2488.3,2488.2,0.51670466]
[1728283256156,1.58133,2488.3,2488.1,3.48914]
[1728283256358,1.58133,2488.3,2488.2,0.51663085]
[1728283257455,1.58133,2488.3,2488.1,3.2078]
[1728283257649,1.58133,2488.3,2488.2,0.51667171]
[1728283260859,1.58133,2488.3,2488.2,0.51725327]
[1728283261263,1.58133,2488.3,2488.1,3.48915]
[1728283261562,1.3,2488.3,2488.2,0.51733802]
[1728283262062,1.3,2488.3,2488.2,0.79867802]
[1728283263855,1.3,2488.3,2488.2,0.28134]
[1728283264062,1.3,2488.3,2488.2,0.51754592]
[1728283264572,1.58133,2488.3,2488.2,0.51754592]
[1728283264863,1.3,2488.3,2488.2,0.51754592]
[1728283266270,1.3,2488.3,2488.2,0.79888592]
[1728283267459,1.3,2488.3,2488.2,0.79888667]
[1728283270963,1.3,2488.3,2488.2,0.79887799]
[1728283271465,1.3,2488.3,2488.2,0.79887894]
[1728283274070,4.2013091,2488.8,2488.2,4.53673894]
[1728283274268,1.3,2488.6,2488.5,0.2813]
[1728283274573,1.3,2488.6,2488.5,1.21964336]
[1728283274969,1.3,2488.6,2488.5,5.23804336]
[1728283278168,1.3,2488.6,2488.5,5.2378368]
[1728283278470,1.3,2488.6,2488.5,5.75497364]
[1728283279274,1.3,2488.6,2488.5,1.21943684]
[1728283281969,0.28123,2489.2,2488.8,0.28126]
[1728283282270,5.95814719,2489.5,2488.9,0.8052]
[1728283282271,0.69904,2489.1,2488.9,0.8052]
[1728283282471,1.3,2489.0,2488.9,0.8052]
[1728283282670,1.58125,2489.0,2488.9,1.32187306]
[1728283283067,1.58125,2489.0,2488.5,3.2078]
[1728283283068,1.3,2489.0,2488.5,3.2078]
[1728283283270,1.3,2488.6,2488.4,0.8052]
[1728283283473,1.7043,2488.5,2488.4,1.08651]
[1728283283681,1.7043,2488.5,2488.4,1.60342239]
[1728283287771,0.4043,2488.5,2488.4,1.60342239]
[1728283287972,1.7043,2488.5,2488.4,1.60342239]
[1728283289080,1.7043,2488.5,2488.4,1.60336779]
[1728283293083,1.7043,2488.5,2488.4,1.6035631]
[1728283297381,1.7043,2488.5,2488.4,1.3222531]
[1728283297583,1.7043,2488.5,2488.4,1.6035631]
[1728283299683,1.7043,2488.5,2488.4,1.08651]
[1728283299877,1.7043,2488.5,2488.4,1.60369688]
[1728283303095,1.7043,2488.5,2488.4,1.08651]
[1728283303293,1.7043,2488.5,2488.4,1.60374731]
[1728283305880,1.3,2488.7,2488.6,0.28129]
[1728283306080,1.3,2488.7,2488.6,0.79852731]
[1728283306588,1.3,2488.7,2488.6,0.28129]
[1728283307090,1.3,2488.7,2488.6,0.79850549]
[1728283309893,1.3,2488.7,2488.6,0.28129]
[1728283310096,1.3,2488.7,2488.6,0.79843849]
[1728283311391,1.3,2488.7,2488.6,0.51714849]
[1728283313101,1.58128,2488.7,2488.6,0.51714849]
[1728283313296,1.58128,2488.7,2488.5,3.9134]
[1728283313493,1.58128,2488.7,2488.6,0.51725419]
[1728283313804,1.58128,2488.7,2488.6,0.5172759]
[1728283316107,1.58128,2488.7,2488.5,3.9134]
[1728283316404,1.58128,2488.7,2488.6,0.51737085]
[1728283316999,1.58128,2488.7,2488.5,3.9134]
[1728283317408,1.58128,2488.7,2488.6,0.5174225]
[1728283318101,1.3,2488.7,2488.6,0.5174225]
[1728283318296,1.58128,2488.7,2488.6,0.5174225]
[1728283320295,1.58128,2488.7,2488.5,3.6321]
[1728283320498,1.58128,2488.7,2488.6,0.51756947]
[1728283323100,1.58128,2488.7,2488.5,3.6321]
[1728283323301,1.58128,2488.7,2488.6,0.51758577]
[1728283329717,0.28129,2488.6,2488.5,3.2078]
[1728283329911,1.3,2488.6,2488.5,3.72557152]
[1728283330810,1.3,2488.7,2488.5,4.42347152]
[1728283331112,1.3,2488.7,2488.6,0.51777152]
[1728283333111,1.3,2488.7,2488.5,3.9057]
[1728283333303,1.3,2488.7,2488.6,0.51769736]
[1728283333503,1.3,2488.7,2488.6,0.51766794]
[1728283334412,1.58128,2488.7,2488.6,0.51766794]
[1728283335218,1.58128,2488.7,2488.0,4.04204818]
[1728283335219,0.28133,2488.3,2488.0,1.05136545]
[1728283335514,4.72164,2488.6,2487.9,0.802]
[1728283335515,1.3,2488.1,2487.9,0.802]
[1728283335917,1.3,2488.1,2488.0,0.28136]
[1728283338121,0.28131,2488.5,2488.1,0.28134]
[1728283338421,4.21655304,2488.6,2488.3,0.28132]
[1728283338422,1.6967,2488.6,2488.3,0.28132]
[1728283338614,1.6967,2488.6,2488.2,3.2078]
[1728283338615,1.6967,2488.6,2488.4,1.51111]
[1728283340419,0.28128,2488.7,2488.4,1.51111]
[1728283342129,1.3,2488.8,2488.4,1.2298]
[1728283342328,0.28128,2488.7,2488.4,1.2298]
[1728283343331,1.58128,2488.7,2488.4,1.2298]
[1728283346638,1.58128,2488.7,2488.4,1.51111]
[1728283350834,0.3857,2488.6,2488.4,1.51111]
[1728283354237,0.3857,2488.6,2488.4,4.71891]
[1728283361146,0.3857,2488.6,2488.4,1.51111]
[1728283369136,0.3857,2488.6,2488.4,4.71891]
[1728283371050,0.806,2489.3,2489.1,0.28124]
[1728283371260,9.3976913,2489.8,2489.2,4.0138]
[1728283371261,0.3846,2489.4,2489.2,4.0138]